Cogmind - Beta 16.1 @@@ ROGUE MODE // 2026.02.12 @ 08:56:35 Player: Gamma Result: Destroyed by K3-8OT(R) with Subdweller Beam Cannon Performance ------------- Evolutions (0) 0 Regions Visited (2) 400 Robots Destroyed (19) 95 Value Destroyed (633) 633 Prototype IDs (0) 0 Alien Tech Used (0) 0 Bonus (0) 0 TOTAL SCORE: 1128 Bonus ------- None Cogmind --------- Core Integrity 0/250 Matter 245/300 Energy 183/200 System Corruption 0% Temperature Cool (9) Movement Rolling (95) Location -10/Subcaves Parts ------- > --- POWER (1) -------- Subdweller Power Source > --- PROPULSION (2) --- Wheel Subdweller Monowheel > --- UTILITY (2) ------ Disposable Heat Sink Large Storage Unit > --- WEAPON (2) ------- EM Pulse Gun > --- INVENTORY (15) --- Light Treads Compact Wheel Large Matter Pod (130) Signal Interpreter Small Laser Subdweller Laser Subdweller Laser Subdweller Beam Cannon Subdweller Machine Gun Grenade Launcher Shrapnel Trap Peak State ------------ > --- POWER ------------ Subdweller Power Source > --- PROPULSION ------- Wheel Subdweller Monowheel > --- UTILITY ---------- Disposable Heat Sink Large Storage Unit > --- WEAPON ----------- Makeshift Laser Subdweller Machine Gun > --- INVENTORY -------- Light Treads Compact Wheel Large Matter Pod Signal Interpreter EM Pulse Gun Small Laser Subdweller Laser Subdweller Laser Subdweller Beam Cannon Grenade Launcher Shrapnel Trap [Rating: 15] Favorites ----------- Power Ion Engine Engine Ion Engine Propulsion Light Treads Treads Light Treads Wheel Wheel Utility Large Storage Unit Device Subdweller Optics Storage Large Storage Unit Processor Visual Processing Unit Weapon Assault Rifle Energy Gun Makeshift Laser Energy Cannon Subdweller Beam Cannon Ballistic Gun Assault Rifle Launcher Grenade Launcher Build | -11 -10 -10 ------- Run | Yrd Mat Sub Slots Evolved . | . . . Power . | . . . Propulsion . | . . . Utility . | . . . Weapon . | . . . Parts Attached 22 | 5 3 14 Power 3 | 1 . 2 Engine 3 | 1 . 2 Core . | . . . Reactor . | . . . Propulsion 5 | 2 . 3 Treads 3 | 2 . 1 Leg . | . . . Wheel 2 | . . 2 Hover . | . . . Flight . | . . . Utility 6 | . 3 3 Device 3 | . . 3 Storage 2 | . 2 . Processor 1 | . 1 . Hackware . | . . . Protection . | . . . Artifact . | . . . Weapon 8 | 2 . 6 Energy Gun 2 | . . 2 Energy Cannon 1 | . . 1 Ballistic Gun 4 | 2 . 2 Ballistic Cannon . | . . . Launcher 1 | . . 1 Special Weapon . | . . . Impact Weapon . | . . . Slashing Weapon . | . . . Piercing Weapon . | . . . Special Melee Weapon . | . . . Unidentified Prototypes . | . . . Parts Lost 9 | . . 9 Power 2 | . . 2 Propulsion 2 | . . 2 Utility 1 | . . 1 Weapon 4 | . . 4 Highest Loss Streak 3 | . . 3 To Critical Strikes 1 | . . 1 Average Backups 11 | 2 8 13 Power 1 | . 1 1 Propulsion 3 | . 2 3 Utility 2 | . 1 2 Weapon 4 | . 2 6 Tool/Special . | . . . Unused Backups 8 | . . 8 Power . | . . . Propulsion 1 | . . 1 Utility 2 | . . 2 Weapon 5 | . . 5 Tool/Special . | . . . Average Slot Usage (%) 96 | . 97 95 Engine 14 | . 14 14 Treads 25 | . 28 23 Wheel 2 | . . 4 Device 6 | . . 9 Storage 14 | . 14 14 Processor 4 | . 11 . Energy Gun 7 | . . 10 Energy Cannon 3 | . . 5 Ballistic Gun 15 | . 28 9 Launcher 1 | . . 2 Peak Build Rating 15 | 5 9 15 Average Rating 10 | 3 8 11 On Entrance 4 | . 5 9 Avg Prop Armor Cover (%) . | . . . Naked Turns . | . . . Heaviest Build 37 | 9 29 37 Greatest Support 40 | 40 40 40 Greatest Overweight (x) 1 | . . 1 Average Overweight (x) . | . . . Largest Inventory Capacity 15 | 5 15 15 Average Capacity 14 | 5 14 15 Most Carried 15 | 5 12 15 Average Carried 11 | 2 8 13 Final Capacity 15 | 5 15 15 Final Carried 12 | 5 12 11 Class Distribution -------------------- 100% | Mutant Dominant Class ---------------- Mutant | -10/Materials Mutant | -10/Subcaves Resources | -11 -10 -10 ----------- Run | Yrd Mat Sub Matter Collected 846 | 61 261 524 Remotely . | . . . Salvage Created 714 | . 261 453 Parts 49 | . 20 29 Haulers Intercepted . | . . . Recyclers Shooed . | . . . Parts Field Recycled . | . . . Retrieved Matter . | . . . Parts Self-Destructed 13 | . . 13 Prevented . | . . . Parts Restored . | . . . Kills | -11 -10 -10 ------- Run | Yrd Mat Sub Combat Hostiles Destroyed 17 | . 5 12 Guns 14 | . 5 9 AOE 3 | . . 3 Classes Destroyed 7 | . 3 4 Worker 1 | . 1 . Watcher 1 | . 1 . Swarmer 2 | . . 2 Grunt 8 | . 5 3 Sentry 1 | . . 1 Artisan 1 | . . 1 Subdweller 6 | . . 6 Best Kill Streak 2 | . 2 2 Combat Bots Only 2 | . 2 2 Max Kills in Single Turn 2 | . 2 2 Gunslinging . | . . . Exploded 2 | . . 2 Melee . | . . . Uniques/NPCs Destroyed . | . . . Combat | -11 -10 -10 -------- Run | Yrd Mat Sub Hostile Shots Fired 77 | . 18 59 Missed 20 | . 6 14 Hits 57 | . 12 45 Projectile 57 | . 12 45 AOE 6 | . . 6 Critical Strikes 1 | . . 1 Damage Taken 1239 | . 160 1079 Core 251 | . 12 239 Absorbed by Shields . | . . . Core Remaining (%) 100 | 100 . . Volleys Fired 82 | . 21 61 Largest 2 | . 2 2 Hottest 180 | . 40 180 Shots Fired 140 | . 42 98 Gun 108 | . 42 66 Cannon 22 | . . 22 Launcher 10 | . . 10 Special . | . . . Kinetic 79 | . 42 37 Thermal 49 | . . 49 Explosive 10 | . . 10 Electromagnetic 2 | . . 2 Robot Hit Streak 17 | . 4 17 Robot Miss Streak 7 | . 7 1 Penetration Max . | . . . Secondary Targets . | . . . Shots Hit Robots 80 | . 23 57 Core Hits 38 | . 13 25 Critical Kills . | . . . Critical Parts Destroyed . | . . . Critical Strikes 2 | . . 2 Burn 2 | . . 2 Melee Attacks . | . . . Impact . | . . . Slashing . | . . . Piercing . | . . . Sneak Attacks . | . . . Combat Hostiles . | . . . Follow-up Attacks . | . . . Damage Inflicted 1474 | . 303 1171 Guns 1023 | . 303 720 Cannons 164 | . . 164 Explosions 287 | . . 287 Melee . | . . . Ramming . | . . . Kinetic 689 | . 303 386 Thermal 477 | . . 477 Explosive 287 | . . 287 Electromagnetic 21 | . . 21 Impact . | . . . Slashing . | . . . Piercing . | . . . Highest Corruption . | . . . Average Corruption . | . . . Corruption Purged . | . . . Corruption Blocked . | . . . Overload Shots 1 | . . 1 Overflow Damage 38 | . . 38 Projectiles . | . . . Explosions 38 | . . 38 Melee . | . . . Knockbacks . | . . . Impact . | . . . Kinetic . | . . . Secondary . | . . . Self-Inflicted Damage . | . . . Shots . | . . . Rammed . | . . . Targets Rammed . | . . . Kicked . | . . . Crushed . | . . . Highest Temperature 60 | . 2 60 Average Temperature 8 | . 2 9 Received Heat Transfer 231 | . 90 141 Siege Activations . | . . . Martial Activations . | . . . Shielding Activations . | . . . Robots Disrupted . | . . . Combat Hostiles . | . . . Robots Corrupted . | . . . Combat Hostiles . | . . . Parts Fried . | . . . Impact Corruptions . | . . . Robots Melted . | . . . Combat Hostiles . | . . . Parts Melted 2 | . . 2 Heat Transferred 1036 | . . 1036 Parts Sabotaged . | . . . Parts Stolen . | . . . Parts Stripped . | . . . Power Chain Reactions . | . . . Alert | -11 -10 -10 ------- Run | Yrd Mat Sub Maximum Alert Level . | . . . Low Security (%) 100 | 100 100 . Level 1 . | . . . Level 2 . | . . . Level 3 . | . . . Level 4 . | . . . Level 5 . | . . . High Security . | . . . Max Security . | . . . Peak Influence 61 | . 61 . Initial . | . . . Average 8 | . 9 . Influence Increases 308 | . 158 150 Destroy 0b10 Robot/C 220 | . 100 120 Destroy 0b10 Robot/NC 10 | . 10 . Destroy Leader 62 | . 32 30 Destroy Structure 1 | . 1 . Lose Combat Pursuer 15 | . 15 . Influence Decreases 308 | . 158 150 Time Decay 278 | . 158 120 Lost Part 30 | . . 30 Squads Dispatched 2 | . 2 . Investigation 1 | . 1 . Extermination . | . . . Reinforcement 1 | . 1 . Assault . | . . . Garrison . | . . . Intercept . | . . . Searches Triggered . | . . . Construction Impeded . | . . . Haulers Reinforced . | . . . Active Scanning Responses . | . . . Cargo Convoy Interrupts . | . . . Stealth | -11 -10 -10 --------- Run | Yrd Mat Sub Distress Signals . | . . . Communications Jammed . | . . . Distress Signals . | . . . Times Spotted 24 | . 8 16 Peak Tracking Total 2 | . 2 2 Tactical Retreats 1 | . 1 . Traps | -11 -10 -10 ------- Run | Yrd Mat Sub Traps Triggered 1 | . 1 . Indirectly . | . . . Trap Hack Attempts . | . . . Triggered . | . . . Disarmed . | . . . Reprogrammed . | . . . Reused . | . . . Traps Extracted . | . . . Installed . | . . . Triggered . | . . . Most Traps Carried 1 | . . 1 Machines | -11 -10 -10 ---------- Run | Yrd Mat Sub Machines Disabled . | . . . Max in Single Turn . | . . . Machines Repaired . | . . . Machines Dismantled . | . . . Machines Sabotaged . | . . . Overloaded Fab Kills . | . . . Hacking | -11 -10 -10 --------- Run | Yrd Mat Sub Machines Accessed 4 | . 3 1 Terminals 3 | . 3 . Fabricators . | . . . Repair Stations . | . . . Recycling Units . | . . . Scanalyzers . | . . . Garrison Access . | . . . Total Hacks 10 | . 8 2 Successful 3 | . 1 2 Failed 7 | . 7 . Catastrophic 1 | . 1 . Database Lockouts . | . . . Manual . | . . . Terminals 8 | . 8 . Fabricators . | . . . Repair Stations . | . . . Recycling Units . | . . . Scanalyzers . | . . . Garrison Access . | . . . Terminal Hacks 3 | . 1 2 Record 2 | . . 2 Robot Analysis 1 | . 1 . Fabricator Hacks . | . . . Repair Station Hacks . | . . . Recycling Unit Hacks . | . . . Scanalyzer . | . . . Garrison Access Hacks . | . . . Unauthorized Hacks . | . . . Terminals . | . . . Fabricators . | . . . Repair Stations . | . . . Recycling Units . | . . . Scanalyzers . | . . . Garrison Access . | . . . Data Cores Recovered . | . . . Used . | . . . Hacking Detections 3 | . 3 . Full Trace Events . | . . . Feedback Events . | . . . Feedback Blocked . | . . . Robot Schematics Acquired . | . . . Robots Built . | . . . Authchips . | . . . Time . | . . . Total Robot Build Rating . | . . . Part Schematics Acquired . | . . . Parts Built . | . . . Authchips . | . . . Time . | . . . Total Part Build Rating . | . . . Part Studies Acquired . | . . . Parts Repaired . | . . . Time . | . . . Parts Recycled . | . . . Recycled Matter . | . . . Retrieved Matter . | . . . Retrieved Components . | . . . Parts Scanalyzed . | . . . Part Schematics Acquired . | . . . Parts Damaged . | . . . Bothacking | -11 -10 -10 ------------ Run | Yrd Mat Sub Used RIF Installer . | . . . Robots Hacked . | . . . Non-combat . | . . . Combat . | . . . Robot Hacks Applied . | . . . Relay Couplers Released . | . . . Fabnet Peak Effective % . | . . . Robots Rewired . | . . . Allies Hacked . | . . . Hacks Repelled . | . . . Allies | -11 -10 -10 -------- Run | Yrd Mat Sub Total Allies . | . . . Largest Group . | . . . Highest-Rated Group . | . . . Highest-Rated Ally . | . . . Total Orders . | . . . Ally Attacks . | . . . Total Damage . | . . . Kills . | . . . Allies Corrupted . | . . . Allies Melted . | . . . Intel | -11 -10 -10 ------- Run | Yrd Mat Sub Active Infowar (turns) 1437 | . 688 749 Optics 1437 | . 688 749 Robot Analysis Total 1 | . 1 . Derelict Logs Recovered 2 | . . 2 Drone Launches . | . . . Drone Recoveries . | . . . Exploration | -11 -10 -10 ------------- Run | Yrd Mat Sub Turns Passed 2781 | 79 820 1882 Spaces Moved 1547 | 45 403 1099 Core 6 | 6 . . Treads 1317 | 39 403 875 Legs . | . . . Wheels 224 | . . 224 Hover . | . . . Flight . | . . . Fastest Speed 50 | 50 160 107 Average Speed 151 | 145 160 149 Slowest Speed 160 | 160 160 160 Overloaded Moves . | . . . Propulsion Burnouts . | . . . Robots Hopped . | . . . Potential Cave-ins . | . . . Cave-ins Triggered . | . . . Exploration Rate (%) 38 | 4 59 51 Regions Visited 2 Branch Regions 1 Pre-discovered Areas 1 | . . 1 Known Exits Taken . | . . . Unknown Exits Taken 2 | 1 1 . Scrap Searched . | . . . Spaces Dug 26 | . . 26 Terrain Destroyed 72 | . . 72 Melee . | . . . Projectile 2 | . . 2 AOE 70 | . . 70 Terrain Rammed . | . . . Walls Destroyed . | . . . Machines Disabled . | . . . Actions | -11 -10 -10 --------- Run | Yrd Mat Sub Total 1835 | 59 536 1240 Wait 145 | . 99 46 Move 1545 | 44 402 1099 Hop . | . . . Pick Up 30 | 10 10 10 Fast Attach . | . . . Attach 16 | 5 2 9 Detach . | . . . Swap 13 | . 1 12 Drop 4 | . 1 3 Fire 82 | . 21 61 Melee . | . . . Ram . | . . . Kick . | . . . Crush . | . . . Escape Stasis . | . . . Rewire . | . . . Trap . | . . . Miscellaneous . | . . . Route ------- -11/Scrapyard -10/Materials (discovered 3 exits: [*Mat] / [*Min] / *Sub) -10/Subcaves (discovered 2 exits: [*Mat x2]) History --------- Turn | Location | Event 5 | -11/Scrapyard | Discovered new exit (range 16) 80 | -11/Scrapyard | Entered Materials 309 | -10/Materials | Build established: Mutant 362 | -10/Materials | Discovered new exit (range 18) 521 | -10/Materials | Discovered new exit (range 18) 892 | -10/Materials | Discovered new exit (range 7) 900 | -10/Materials | Entered Subcaves 901 | -10/Subcaves | Approached by a straggling Scientist 984 | -10/Subcaves | Discovered new exit (range 10) 1435 | -10/Subcaves | Visited Clippyterm 1634 | -10/Subcaves | Shifting Twisted Machinery released Sub. Power Source 1653 | -10/Subcaves | Lost 3 parts (1u2w) 1692 | -10/Subcaves | Shifting Twisted Machinery released Sub. Beam Cannon 1705 | -10/Subcaves | Shifting Twisted Machinery released Shrapnel Trap 1756 | -10/Subcaves | Shifting Twisted Machinery released Sub. Machine Gun 2200 | -10/Subcaves | Ambushed by Subdweller buried in earth 2469 | -10/Subcaves | Learned Materials stockpile data 2489 | -10/Subcaves | Core integrity fell below 50% 2503 | -10/Subcaves | Core integrity fell below 20% 2520 | -10/Subcaves | Discovered new exit (range 9) 2542 | -10/Subcaves | Lost 3 parts (1p2n) 2782 | -10/Subcaves | Destroyed by K3-8OT(R) with Subdweller Beam Cannon Last Messages --------------- 02489_ Critical hit (Destroy). 02489_ Lgt. Treads destroyed. 02500_ X6-B12(R) destroyed. 02508_ V1-VF2(R) affixes Scrap Shield Fragment to Scrap Shield. 02511_ Lgt. Ion Engine destroyed. 02514_ V1-VF2(R) destroyed. 02520_ Acquired 88 matter. 02520_ EXIT=FOUND 02526_ MZ-U9P(u) deconstructs Twisted Machinery. 02599_ Subatomizers dissect the Sub. Optics. 02629_ MZ-U9P(u) deconstructs Twisted Machinery. 02774_ 6B-6I3(R) destroyed. 02774_ Destroyed Sub. Optics. 02780_ K3-8OT(R) affixes Scrap Shield Fragment to Scrap Shield. 02782_ Mak. Laser destroyed. Map ----- +----------------------------------------------------+ | #??????????????????????????????????????????????? | | " #??????????????????????????????????????????????? | | ""#??????????????????????????????????????????????? | | ##????????????????????????? #???????????????????? | | #?????????????????????????? #??????????????????? | | #?????????????????????????? #?????????????????? | | ##?????????????????????????? ?????????????????? | | ##?????????????????????????? ?????????????????? | | #????????????????????##???? ?????????????????? | | ##????????????????????# ??? #?????????????????? | | ##????????????????????# ??? ###???????????????? | | #????????????????????# ?? ##??????????????? | | ##????????????????????# ?? ##???##????????? | | #????????????????????# ?# ### ###??????? | | #?????????????????????? ## ?????? | | #??????????????????????? ?????? | | ##???????????????????????? ??????? | | #?????????????????????????# #???????????? | | #?????????????????????????# #????????????? | | #####??????????######?###?# =% #####????????????? | | ## #####??##### #?# ## R #????????????????? | | # #### # #### ?????????????????? | | # ## ##?????????????????? | | # # # #?????????????????? | | ##### # #?????????????????? | | ##??# # @ #?????????????????? | | ##???## ###?????????????????? | | #????# ####???????????????????? | | # #???# ##??????????????????????? | | ## ##### ##???????????????????????? | | # # ### ##????????????????????????? | | ## ### ##?#####??????????????????? | | # % ## #?????????????????? | | ## ### ??????????????????? | | # ### ???????????????????? | | #?# ?????????????????????? | | #### ## ## ????????????????????? | | ## % ## ##?###??????????????????? | | ### %& ## ##?## ##?????????????????? | | ## ##### ##????????????????? | | # ## #????????????????? | | ## # #????????????????? | | ?## ### #?#####??????????? | | ??##### # ####?# ### ##?????????? | | ??????# ### #####????# ##########? | | ###???# ### ##?# ##????????## ## | | #???###?###??####??????????## # | | #???????????????????????????##### | | ##??????????????????????????????# ### | | #????????????????????????????# #?# | +----------------------------------------------------+ Best States ------------- Heat Dissipation 35 Coolant Potential 50 Energy Generation 15 Energy Capacity 250 Matter Stores 300 Matter Capacity 300 Sight Range 21 Terrain Scan Density 10 Evasion (%) 40 Recoil Reduction 2 Item Schematics ----------------- None Robot Schematics ------------------ None Fabricated ------------ Nothing Repaired ---------- Nothing Studied --------- None Alien Tech Used ----------------- None Achievements -------------- Art Critic Challenges ------------ None Game ------ Seed LongswordResetLoader Manual? 0 Play Time 00:23:44 Cumulative 59.0 hours Start 2026.02.12 @ 08:35:02 End 2026.02.12 @ 08:56:35 Sessions 1 Manual Loads 0 Difficulty Rogue Special Mode None Game No. 45 Rogue 45 Adventurer 0 Explorer 0 Win Type - Total 1 Types 1/0/0/0/0/0/0/0/0/0 Lore% 36 Gallery% 37 Achievement% 24 Wizard Run 0 Options --------- Layout 1 ASCII 1 Keyboard 0 Movement Mouse Keybinds 0 Fullscreen 1 Font 32/Tamsyn Map View 50x35 Zoom Use 0% Tactical HUD 1 Map Filters NONE Filters NONE Steam 1 RUN: a3369f03-6766-4ce3-97b6-928fe353f7a3